Workbook

Sheet Sheet1
A1: Estimating Hospital's Share of Hospital Transformation Performance Program (HTPP) Funding
A2: HTPP Calculator
A3: Part I: HTPP Total for All Hospitals
A4: Estimated HTPP total for the year (approx between $130-150 million) | C4: 133000000
A6: Part II: Floor Payment Calculation for All Hospitals
A7: Will your hospital achieve reporting/performance requirement on at least 75% of the measures? | C7: Yes
A9: Number of hospitals (including your own) that will achieve reporting/performance requirement on at least 75% of the measures | C9: 28
A11: Total Floor payment for all hospitals ($500,000*# hospitals receiving floor payment) | C11: =500000*C9 -> 14000000
A13: Part III: Base Distribution Calculation
A14: Remaining fund for base distribution after floor payments | C14: =C4-C11 -> 119000000
A16: A. Value of each measure for all hospitals
A17: Readmission | B17: 0.1875 | C17: =B17*$C$14 -> 22312500
A18: Medication safety - Hypoglycemia | B18: 0.0625 | C18: =B18*$C$14 -> 7437500
A19: Medication safety - Warfarin | B19: 0.0625 | C19: 7437500
A20: Medication safety - Opioids | B20: 0.0625 | C20: 7437500
A21: HCAHPS - explain medicine | B21: =B17/2 -> 0.09375 | C21: 11156250
A22: HCAHPS - discharge instructions | B22: =B17/2 -> 0.09375 | C22: 11156250
A23: Healthcare Acquired Infections - CLABSI in all tracked units | B23: =B17/2 -> 0.09375 | C23: 11156250
A24: Healthcare Acquired Infections - CAUTI in all tracked units | B24: =B17/2 -> 0.09375 | C24: 11156250
A25: Sharing of ED visit info with primary care providers and other hospitals | B25: 0.125 | C25: 14875000
A26: Behavioral Health - Follow-up after hospitalization of mental health illness | B26: =B25/2 -> 0.0625 | C26: 7437500
A27: Behavioral Health - SBIRT in the ED | B27: =B25/2 -> 0.0625 | C27: 7437500
A28: Total value of all measures for all hospitals | B28: =SUM(B17:B27) -> 1 | C28: =SUM(C17:C27) -> 119000000
A30: B. Assumptions about your hospital's performance (Yes = successful; No = unsuccessful or not applicable)
A31: Readmission | C31: Yes
A32: Medication safety - Hypoglycemia | C32: Yes
A33: Medication safety - Warfarin | C33: Yes
A34: Medication safety - Opioids | C34: Yes
A35: HCAHPS - explain medicine | C35: Yes
A36: HCAHPS - discharge instructions | C36: Yes
A37: Healthcare Acquired Infections - CLABSI in all tracked units | C37: Yes
A38: Healthcare Acquired Infections - CAUTI in all tracked units | C38: Yes
A39: Sharing of ED visit info with primary care providers and other hospitals | C39: Yes
A40: Behavioral Health - Follow-up after hospitalization of mental health illness | C40: Yes
A41: Behavioral Health - SBIRT in the ED | C41: Yes
A43: C. Information about your hospital size
A44: Total DRG Hospital Medicaid discharges* | C44: 60056
A45: Total DRG Hospital Medicaid inpatient days* | C45: 232945
A46: Your hospital's total Medicaid discharges* | C46: 3817
A47: Your hospital's total Medicaid inpatient days* | C47: 12545 | G47: Adjustment to remove Shriner's from measures where they have no service line
A48: Share of total DRG Medicaid discharges | C48: =C46/C44 -> 0.06355734648 | G48: =C46/(C44-203) -> 0.0637729103
A49: Share of total DRG Medicaid inpatient days | C49: =C47/C45 -> 0.05385391401 | G49: =C47/(C45-810) -> 0.05404182911
A50: Adjustment Factor | C50: =(C48*0.5)+(C49*0.5) -> 0.05870563025 | G50: =(G48*0.5)+(G49*0.5) -> 0.0589073697
A52: D. Estimated earning for each measure for your hospital
A53: Readmission | C53: =IF(C31="Yes",C17*$C$50,0) -> 1309869.375
A54: Medication safety - Hypoglycemia | C54: =IF(C32="Yes",C18*$C$50,0) -> 436623.1249
A55: Medication safety - Warfarin | C55: 436623.1249
A56: Medication safety - Opioids | C56: 436623.1249
A57: HCAHPS - explain medicine | C57: =IF(C35="Yes",C21*$C$50,0) -> 654934.6874
A58: HCAHPS - discharge instructions# | C58: =IF(C36="Yes",C22*$G$50,0) -> 657185.3432
A59: Healthcare Acquired Infections - CLABSI in all tracked units | C59: 654934.6874
A60: Healthcare Acquired Infections - CAUTI in all tracked units | C60: 654934.6874
A61: Sharing of ED visit info with primary care providers and other hospitals# | C61: =IF(C39="Yes",C25*$G$50,0) -> 876247.1243
A62: Behavioral Health - Follow-up after hospitalization of mental health illness | C62: 436623.1249
A63: Behavioral Health - SBIRT in the ED# | C63: =IF(C41="Yes",C27*$G$50,0) -> 438123.5622
A64: Total earned for all measures for your hospital (not including floor payment) | C64: =SUM(C53:C63) -> 6992721.967
A66: Total estimated payment for your hospital
A67: 1. Floor Payment Amount | C67: =IF(C7="Yes",500000,0) -> 500000
A68: 2. Base Distribution Amount Earned for All Measures | C68: =C64 -> 6992721.967
A69: Total estimated hospital payment (inlcuding floor payment) | C69: =SUM(C67:C68) -> 7492721.967
A72: Notes:
A73: This tool should only be used to provide an estimate. The final payment can vary significantly from this calculation based on the size of the HTPP pool, how successful your hospital is in meeting the floor payment criteria and the performance benchmark/improvement target of the measures, and the performance of other hospitals on each of the measures. Current template assumes that all other hospitals are successful on each measure; this can be revised once all data for the year has been submitted.
A74: *Medicaid discharges and Medicaid inpatient days are based on Oct 1, 2011-Sep 30, 2012 hospital inpatient discharge data as reported to COMPDATA. Includes both fee-for-service and managed care data. Includes newborn. Excludes non-Oregon hospitals.
A75: #Since one or more hospitals do not have the relevant service line, their Medicaid discharges and inpatient days are subtracted from the total.
